Cogmind - Beta 11 X7 @@@ ROGUE MODE // 2021.09.08 @ 22:24:21 Player: AlmondRoll Result: System corrupted Performance ------------- Evolutions (7) 3500 Regions Visited (27) 5400 Robots Destroyed (436) 2180 Value Destroyed (18174) 18174 Prototype IDs (80) 1600 Alien Tech Used (1) 200 Bonus (5769) 5769 TOTAL SCORE: 36823 Bonus ------- High Alert Combat Kills 1291 Follower Combat Kills 2474 Network Hubs Disabled 400 Aligned with FarCom 300 Met Zhirov 300 Met Warlord at Base 500 MAIN.C Attacked Warlord 500 Warlord Defense Kill 2548 Met R17 at Cetus 500 Friendly Fire -3044 Cogmind --------- Core Integrity 0/1300 Matter 285/300 Energy 78/170 System Corruption 100% Temperature Cool (0) Movement Walking (275) Ox2 Location -3/Research Parts ------- > --- POWER (2) -------- Light Antimatter Reactor > --- PROPULSION (5) --- Myomer Leg Biometal Leg > --- UTILITY (12) ----- Advanced Cooling System Experimental Cooling System High-capacity Storage Unit Makeshift Trap Scanner Improved Armor Integrity Analyzer Quantum Capacitor Experimental Thermal Defense Suite Advanced Force Field Improved Hacking Suite System Mapper Improved System Shield > --- WEAPON (2) ------- Vortex Cannon Micro-nuke Launcher > --- INVENTORY (20) --- Reinforced Fission Core Advanced Myomer Leg Advanced Weapon Cycler Improved Heavy Armor Plating Trap Reconfigurator Transdimensional Reconstructor Vortex Cannon (26) Nova Cannon Tri-rail Accelerator Tri-rail Accelerator Tri-rail Accelerator Deploy-a-Sentry Deploy-a-Sentry Deploy-a-Sentry Peak State ------------ > --- POWER ------------ Vortex Chain Reactor > --- PROPULSION ------- Centrium Heavy Treads Centrium Heavy Treads > --- UTILITY ---------- High-capacity Storage Unit Experimental Core Analyzer Improved Armor Integrity Analyzer Centrium Medium Armor Plating Centrium Medium Armor Plating Advanced Remote Shield Improved Hacking Suite Improved Hacking Suite Improved Hacking Suite Improved System Shield Sensor Drone Bay > --- WEAPON ----------- Tri-rail Accelerator > --- INVENTORY -------- Advanced Heat Sink Makeshift Trap Scanner Particle Accelerator Quantum Capacitor Advanced Transmission Jammer System Mapper Trap Reconfigurator Transdimensional Reconstructor Plasma Rifle Vortex Shotgun Vortex Shotgun Cooled Proton Cannon Vortex Cannon Vortex Cannon KE Penetrator Deploy-a-Sentry Deploy-a-Sentry Deploy-a-Sentry [Rating: 155] Favorites ----------- Power Quantum Reactor Engine Cooled Deuterium Engine Power Core Light Nuclear Core Reactor Quantum Reactor Propulsion Light Treads Treads Light Treads Leg Myomer Leg Wheel Compact Wheel Utility Improved Hacking Suite Device Sensor Drone Bay Storage High-capacity Storage Unit Processor Improved Armor Integrity Analyzer Hackware Improved Hacking Suite Protection Centrium Medium Armor Plating Weapon Particle Cannon Energy Gun Advanced Beam Rifle Energy Cannon Particle Cannon Ballistic Gun KE Penetrator Ballistic Cannon Heavy Mass Driver Launcher Proton Missile Launcher Special Weapon Molecular Deconstructor Impact Weapon Shock Maul Slashing Weapon Blade Saw Special Melee Weapon Datajack Build | -11 -10 -10 -9 -9 -9 -8 -8 -8 -7 -6 -6 -6 -6 -6 -5 -5 -5 -5 -4 -4 -4 -4 -4 -4 -4 -3 -3 ------- Run | Scr Mat Min Mat Min Exi Min Mat Sto Fac Fac Ext Cet Arc Hub Fac Upp Upp Zhi Pro Fac Was Fac Upp Upp War Pro Res Slots Evolved 14 | . . . 2 . . . 2 . 2 2 . . . . 2 . . . . 2 . . . . . . 2 Power 1 | . . . . . . . . . . . . . . . 1 . . . . . . . . . . . . Propulsion 3 | . . . 1 . . . 1 . . . . . . . . . . . . . . . . . . . 1 Utility 10 | . . . 1 . . . 1 . 2 2 . . . . 1 . . . . 2 . . . . . . 1 Weapon . | . . . . . . . . . . . . . . . . . . . . . . . . . . . . Parts Attached 565 | 4 25 . 22 3 5 . 20 46 60 23 64 26 8 22 33 7 6 6 23 6 11 45 11 15 19 10 45 Power 26 | . 2 . 2 . . . 3 2 2 1 2 1 . . 1 . . . 1 . . 5 . . 1 . 3 Engine 9 | . 2 . . . . . 1 2 1 1 2 . . . . . . . . . . . . . . . . Core 7 | . . . 2 . . . 2 . 1 . . . . . . . . . . . . 2 . . . . . Reactor 10 | . . . . . . . . . . . . 1 . . 1 . . . 1 . . 3 . . 1 . 3 Propulsion 93 | 3 3 . 5 . . . 6 11 6 4 20 5 . 1 2 . . . 2 . . 2 1 1 . 6 15 Treads 64 | . . . 4 . . . 6 11 6 3 20 5 . 1 2 . . . 2 . . 2 1 1 . . . Leg 24 | . 2 . 1 . . . . . . . . . . . . . . . . . . . . . . 6 15 Wheel 5 | 3 1 . . . . . . . . 1 . . . . . . . . . . . . . . . . . Hover . | . . . . . . . . . . . . . . . . . . . . . . . . . . . . Flight . | . . . . . . . . . . . . . . . . . . . . . . . . . . . . Utility 249 | 1 7 . 5 2 2 . 6 11 35 11 27 7 6 16 20 4 1 3 7 4 6 23 5 7 12 2 19 Device 153 | 1 2 . 2 1 . . 4 10 21 7 16 2 2 6 14 3 1 3 5 1 6 15 3 3 8 2 15 Storage 9 | . 2 . 1 1 1 . . 1 1 . 1 . . . . . . . . . . . . . . . 1 Processor 10 | . 1 . . . . . . . 2 2 2 . . . . . . . . . . 1 . . 1 . 1 Hackware 13 | . . . 1 . . . 1 . 3 . . . . 4 1 . . . . 2 . . . . . . 1 Protection 64 | . 2 . 1 . 1 . 1 . 8 2 8 5 4 6 5 1 . . 2 1 . 7 2 4 3 . 1 Artifact . | . . . . . . . . . . . . . . . . . . . . . . . . . . . . Weapon 197 | . 13 . 10 1 3 . 5 22 17 7 15 13 2 5 10 3 5 3 13 2 5 15 5 7 6 2 8 Energy Gun 51 | . 3 . 1 . . . 4 16 6 4 3 1 1 . 3 . . 1 1 . 1 1 . . 2 1 2 Energy Cannon 38 | . 2 . 5 . 2 . 1 . 1 . 4 . . . . . . . 1 1 1 6 3 3 2 1 5 Ballistic Gun 48 | . 7 . . . . . . . 7 1 . 8 1 4 5 1 3 2 6 1 2 . . . . . . Ballistic Cannon 19 | . 1 . . . . . . . . 1 5 2 . . . . . . . . 1 4 1 2 2 . . Launcher 34 | . . . 4 . . . . 4 2 1 3 2 . 1 2 2 2 . 3 . . 4 1 2 . . 1 Special Weapon 2 | . . . . . . . . . . . . . . . . . . . 2 . . . . . . . . Impact Weapon 2 | . . . . . . . . 2 . . . . . . . . . . . . . . . . . . . Slashing Weapon 1 | . . . . . . . . . 1 . . . . . . . . . . . . . . . . . . Piercing Weapon . | . . . . . . . . . . . . . . . . . . . . . . . . . . . . Special Melee Weapon 2 | . . . . 1 1 . . . . . . . . . . . . . . . . . . . . . . Unidentified Prototypes 32 | . . . 1 1 . . . 5 3 2 1 4 . 1 1 . . 2 1 . . 2 . . 5 . 3 Corrupted Parts 21 | . . . . . . . . 2 . . . . . . . . . . 1 . . 1 . . . 5 12 System Corruption 118 | . . . . . . . . 3 . . . . . . . . . . 2 . . 4 . . . 23 86 Parts Lost 69 | . 3 . 2 . . . 3 1 . 3 11 2 2 2 . . . . . . . 5 . 4 4 3 24 Power 6 | . . . . . . . . . . . 1 . . . . . . . . . . 2 . . . . 3 Propulsion 24 | . 1 . . . . . 1 . . 2 6 . . . . . . . . . . . . 1 . 1 12 Utility 33 | . 2 . 2 . . . 1 1 . 1 4 2 2 1 . . . . . . . 2 . 3 3 2 7 Weapon 6 | . . . . . . . 1 . . . . . . 1 . . . . . . . 1 . . 1 . 2 Highest Loss Streak 8 | . 1 . 1 . . . 1 1 . 2 8 1 2 2 . . . . . . . 2 . 3 1 3 6 Average Slot Usage (%) 90 | . 99 100 96 100 91 100 98 98 99 96 96 82 85 85 87 88 87 77 85 87 88 84 86 83 76 75 81 Engine 2 | . 14 14 . . . . 6 8 5 6 5 . . . . . . . . . . . . . . . . Core 2 | . . . 10 11 11 11 2 . 1 . . . . . . . . . . . . 2 5 5 2 . . Reactor 4 | . . . . . . . . . . . . 5 6 6 11 11 11 11 11 10 10 7 5 5 5 5 5 Treads 17 | . . . 16 33 33 33 36 35 29 22 24 14 13 13 11 11 11 11 10 10 10 10 10 9 10 3 . Leg 2 | . 14 28 16 . . . . . . . . . . . . . . . . . . . . . . 12 22 Device 11 | . 10 14 11 12 11 11 17 18 12 11 8 4 11 11 9 10 10 11 10 8 10 10 12 7 12 12 16 Storage 6 | . 14 14 11 11 11 11 9 9 7 6 6 6 6 6 5 5 5 5 5 5 5 5 5 5 5 5 4 Processor 3 | . . . . . . . . . . 5 6 6 6 6 5 5 5 5 5 5 5 5 5 5 7 10 5 Hackware 19 | . . . 3 . . . 1 9 23 26 22 17 3 24 27 29 29 29 29 34 36 32 31 31 24 15 15 Protection 4 | . 2 . 4 9 10 11 7 . 1 1 6 13 23 3 1 . . . . 1 . 3 2 7 4 . . Energy Gun 3 | . 4 . . . . . 8 17 9 11 3 . 1 . . . . 1 . . . . . . . 4 2 Energy Cannon 4 | . 12 28 21 21 8 22 9 . . . 2 . . . . . . . . . 3 1 5 . . 4 3 Ballistic Gun 3 | . 10 . . . . . . . 5 . . 9 11 12 10 6 4 . 8 9 5 . . . . . . Ballistic Cannon 1 | . . . . . . . . . . . 5 1 . . . . . . . . . 4 2 4 3 . . Naked Turns . | . . . . . . . . . . . . . . . . . . . . . . . . . . . . Heaviest Build 144 | 14 24 24 37 68 60 57 62 66 77 86 90 94 102 102 114 116 117 112 115 118 131 139 139 144 135 115 117 Greatest Support 160 | 32 32 26 60 60 60 60 80 82 80 82 112 160 160 160 160 160 160 160 160 160 160 160 160 160 160 160 125 Greatest Overweight (x) 7 | . 1 . . 1 . . . 1 . 7 6 1 . . . . . . 1 . . . . . . 4 1 Average Overweight (x) . | . . . . . . . . . . 1 . . . . . . . . . . . . . . . . . Largest Inventory Capacity 20 | 8 10 10 15 20 20 20 20 20 20 20 20 20 20 20 20 20 20 20 20 20 20 20 20 20 20 20 20 Average Capacity 19 | 8 8 10 13 15 20 20 20 20 20 20 20 20 20 20 20 20 20 20 20 20 20 20 20 20 20 20 20 Most Carried 20 | 8 10 10 15 20 20 20 20 20 20 20 20 20 20 20 20 20 20 20 20 20 20 20 20 20 20 20 20 Average Carried 18 | 6 8 9 13 15 19 20 19 19 19 19 19 19 19 19 19 19 20 19 19 19 19 19 19 18 19 18 19 Final Capacity 20 | 8 10 10 15 20 20 20 20 20 20 20 20 20 20 20 20 20 20 20 20 20 20 20 20 20 20 20 20 Final Carried 20 | 7 10 10 15 20 20 20 20 20 20 19 20 20 20 20 20 20 20 20 20 20 20 20 20 20 19 20 18 Class Distribution -------------------- 36% | Wizard-Mutant 34% | Scavenger-Mutant 22% | Hacker-Mutant 5% | Mutant Dominant Class ---------------- Mutant | -10/Materials Mutant | -10/Mines Scavenger-Mutant | -9/Materials Scavenger-Mutant | -9/Mines Scavenger-Mutant | -9/Exiles Scavenger-Mutant | -8/Mines Scavenger-Mutant | -8/Materials Scavenger-Mutant | -8/Storage Hacker-Mutant | -7/Factory Hacker-Mutant | -6/Factory Hacker-Mutant | -6/Extension Scavenger-Mutant | -6/Cetus Scavenger-Mutant | -6/Archives Scavenger-Mutant | -6/Hub_04(d) Wizard-Mutant | -5/Factory Wizard-Mutant | -5/Upper Caves Wizard-Mutant | -5/Upper Caves Wizard-Mutant | -5/Zhirov Wizard-Mutant | -4/Proximity Caves Wizard-Mutant | -4/Factory Wizard-Mutant | -4/Waste Wizard-Mutant | -4/Factory Wizard-Mutant | -4/Upper Caves Wizard-Mutant | -4/Upper Caves Wizard-Mutant | -4/Warlord Scavenger-Mutant | -3/Proximity Caves Hacker-Mutant | -3/Research Resources | -11 -10 -10 -9 -9 -9 -8 -8 -8 -7 -6 -6 -6 -6 -6 -5 -5 -5 -5 -4 -4 -4 -4 -4 -4 -4 -3 -3 ----------- Run | Scr Mat Min Mat Min Exi Min Mat Sto Fac Fac Ext Cet Arc Hub Fac Upp Upp Zhi Pro Fac Was Fac Upp Upp War Pro Res Matter Collected 10665 | 240 280 3 263 17 . . 240 473 811 292 1380 697 178 585 616 259 117 85 563 66 120 1112 448 520 648 139 513 Remotely 96 | 20 76 . . . . . . . . . . . . . . . . . . . . . . . . . . Salvage Created 19947 | 99 343 55 1130 . . . 785 1642 985 774 1144 807 677 1668 1444 66 12 310 320 . 1329 1686 332 678 912 635 2114 Parts 866 | 4 18 1 75 . . . 25 100 50 33 50 47 48 71 56 2 2 5 14 . 14 89 7 20 19 27 89 Haulers Intercepted 27 | . 1 . 4 . . . 1 6 4 1 3 . . 2 2 . . . . . . 1 . . . . 2 Recyclers Shooed 13 | . . . . . . . . . 2 2 . . . . 7 . . . . . . 1 . . . . 1 Parts Field Recycled 34 | . . . . . . . . . . 5 8 . . . 15 6 . . . . . . . . . . . Retrieved Matter 532 | . . . . . . . . . . 125 165 . . . 190 52 . . . . . . . . . . . Parts Self-Destructed 186 | . . . . . . . . . . . . . . . . 4 10 5 33 . . . 4 16 110 4 . Prevented 99 | . . . . . . . . . . . . . . . . 16 2 . 27 . . . 7 1 23 23 . Kills | -11 -10 -10 -9 -9 -9 -8 -8 -8 -7 -6 -6 -6 -6 -6 -5 -5 -5 -5 -4 -4 -4 -4 -4 -4 -4 -3 -3 ------- Run | Scr Mat Min Mat Min Exi Min Mat Sto Fac Fac Ext Cet Arc Hub Fac Upp Upp Zhi Pro Fac Was Fac Upp Upp War Pro Res Combat Hostiles Destroyed 318 | . 12 . 26 . . . 14 21 13 7 27 19 4 15 22 2 1 . 8 . 5 40 4 22 19 9 28 Melee 1 | . . . . . . . . . . . . . . . . . . . . . . . . . 1 . . Guns 96 | . 12 . . . . . 3 8 10 7 3 10 4 15 14 . . . 1 . . . . . . 2 7 Cannons 95 | . . . 15 . . . 9 . . . 13 4 . . . . . . . . 5 15 1 3 18 . 12 AOE 90 | . . . 11 . . . . 10 3 . 10 5 . . 7 2 1 . 5 . . 17 . 18 . . 1 Classes Destroyed 25 | 1 5 . 2 . . . 2 3 3 . 1 . . . . . . . 1 . 2 . . . 3 . 2 Worker 17 | . . . . . . . 1 1 1 1 . . . 7 4 . . . . . . 2 . . . . . Builder 9 | . . . 1 . . . . 2 . . 1 . . 3 . . . . . . . 1 . . . . 1 Hauler 27 | . 1 . 4 . . . 1 6 4 1 3 . . 2 2 . . . . . . 1 . . . . 2 Recycler 17 | 1 . 1 . . . . . 6 4 1 . . . 2 2 . . . . . . . . . . . . Mechanic 2 | . . . . . . . . 1 . . . . . . . . . . . . . . . 1 . . . Operator 20 | . 3 . 4 . . . 1 . 1 . 1 . 9 . . . . . . . . 1 . . . . . Drone 3 | . . . . . . . . 2 . . . . . . . . . . . . 1 . . . . . . Watcher 15 | . 1 . 2 . . . . 2 1 1 . 2 . 1 . . . . . . . 4 . . . . 1 Swarmer 89 | . 9 . 11 . . . . 7 7 . 11 6 . . 9 1 1 . 2 . . 12 . 8 . . 5 Cutter 1 | . . . . . . . . . 1 . . . . . . . . . . . . . . . . . . Saboteur 2 | . . . . . . . . . . . . . . . . . . . . . . . . . 2 . . Grunt 104 | . 3 . 7 . . . 10 8 . 3 6 . . 11 6 1 . . 5 . . 10 3 9 10 5 7 Brawler 6 | . . . . . . . 1 . . . . . . . . . . . . . . . 1 3 1 . . Duelist 2 | . . . . . . . . . . . . . . . . . . . 1 . . . . . 1 . . Protector 2 | . . . . . . . . . 1 . . . . . . . . . . . . . . . 1 . . Sentry 40 | . . . 8 . . . 3 5 2 2 8 . 4 2 1 . . . . . . 1 . 2 . . 2 Specialist 1 | . . . . . . . . . . . . . . . . . . . . . . . . . . . 1 Hunter 24 | . . . . . . . . 1 . . 1 3 . 1 . . . . . . . 8 . . . 4 6 Programmer 32 | . . . . . . . . . 3 2 . 2 . 1 6 . . . 1 . . 9 . . 2 . 6 Heavy 2 | . . . . . . . . . . . . . . . . . . . . . . . . . . . 2 Behemoth 1 | . . . . . . . . . . . 1 . . . . . . . . . . . . . . . . Compactor 5 | . . . . . . . . . . . . . . . . . . . . . 5 . . . . . . Cetus Guard 8 | . . . . . . . . . . . . 8 . . . . . . . . . . . . . . . Striker 1 | . . . . . . . . . . . . . . . . . . . . . . . . . 1 . . Executioner 1 | . . . . . . . . . . . . . . . . . . . . . . . . . 1 . . Decomposer 2 | . . . . . . . . . . . . . . . . . . . . . . . 1 1 . . . Wasp 1 | . . . . . . . . . . . . . . . . . . . . . 1 . . . . . . Thug 2 | . . . . . . . . . . . 1 . . . . . . . . . . 1 . . . . . Savage 1 | . . . . . . . . . . . . . . . . . . . . . . . . . 1 . . Butcher 1 | . . . . . . . . . . . . . . . . . . . . . . . . . 1 . . Martyr 2 | . . . . . . . . . . . . . . . . . . . . . 2 . . . . . . Guerrilla 1 | . . . . . . . . . . . 1 . . . . . . . . . . . . . . . . Best Kill Streak 19 | 1 5 1 7 . . . 3 14 4 3 8 6 7 9 5 1 1 . 3 . 2 8 4 19 8 9 5 Combat Bots Only 18 | . 5 . 6 . . . 3 8 4 3 7 5 2 5 5 1 1 . 3 . 2 6 4 18 8 9 5 Max Kills in Single Turn 7 | 1 2 1 4 . . . 1 4 3 2 5 3 1 7 2 1 1 . 2 . 1 4 1 4 2 2 2 Gunslinging 1 | . 1 . . . . . . . . . . 1 . 1 . . . . . . . . . . . . . Exploded 4 | . . . 4 . . . . 3 3 . 4 3 . . 2 1 1 . 2 . . 4 . 4 . . 1 Melee 1 | . . . . . . . . . . . . . . . . . . . . . . . . . 1 . . Uniques/NPCs Destroyed . | . . . . . . . . . . . . . . . . . . . . . . . . . . . . Combat | -11 -10 -10 -9 -9 -9 -8 -8 -8 -7 -6 -6 -6 -6 -6 -5 -5 -5 -5 -4 -4 -4 -4 -4 -4 -4 -3 -3 -------- Run | Scr Mat Min Mat Min Exi Min Mat Sto Fac Fac Ext Cet Arc Hub Fac Upp Upp Zhi Pro Fac Was Fac Upp Upp War Pro Res Damage Taken 25261 | . 389 . 519 . . 39 980 973 891 530 2580 2261 397 1596 1123 61 97 . 1016 41 . 3658 312 1645 1992 595 3566 Core 1907 | . 79 . 68 . . 7 152 144 77 26 227 97 69 160 60 7 . . 54 . . 212 38 49 67 74 240 Absorbed by Shields 3579 | . . . 17 . . . . . 219 . . . . . 383 58 54 . 232 38 . 1344 . 435 584 119 96 Reduced by Siege Mode 1326 | . . . . . . . . . . . . 158 26 156 67 . . . 164 3 . 366 23 141 186 36 . Core Remaining (%) 70 | 100 . 68 . . . 81 . 46 89 . . . . 31 . . . . 87 . . . . . . 61 . Volleys Fired 1180 | 1 36 1 66 . . . 65 72 63 27 104 53 74 49 77 4 2 16 33 5 36 118 14 35 61 28 140 Largest 2 | 2 2 2 2 . . . 2 2 2 2 2 2 2 2 2 2 2 1 2 1 2 2 2 1 1 1 1 Hottest 170 | 90 136 136 136 . . . 136 122 122 160 170 100 80 70 155 66 76 80 80 110 110 163 156 81 80 60 113 Shots Fired 1751 | 2 72 2 126 . . . 129 136 123 53 192 85 85 95 145 5 3 16 37 5 37 122 25 37 61 28 130 Gun 923 | 2 68 . . . . . 46 132 121 53 48 64 85 94 138 2 1 16 11 4 3 4 . . 3 4 24 Cannon 755 | . 4 2 121 . . . 83 . 1 . 140 18 . . . . . . . 1 34 112 24 27 58 24 106 Launcher 55 | . . . 5 . . . . 4 1 . 4 3 . 1 7 3 2 . 8 . . 6 1 10 . . . Special 18 | . . . . . . . . . . . . . . . . . . . 18 . . . . . . . . Kinetic 686 | . 32 . . . . . . . 53 3 110 81 27 94 124 2 1 . 8 4 3 66 3 18 57 . . Thermal 677 | 2 40 2 121 . . . 129 15 69 50 78 1 58 . 14 . . 16 3 1 34 17 . . 3 . 24 Explosive 49 | . . . 5 . . . . 4 1 . 4 3 . 1 4 1 1 . 8 . . 6 1 10 . . . Electromagnetic 288 | . . . . . . . . 117 . . . . . . 3 2 1 . . . . 33 21 9 . 24 78 Entropic 33 | . . . . . . . . . . . . . . . . . . . . . . . . . 1 4 28 Robot Hit Streak 36 | 2 9 4 8 . . . 32 12 13 16 25 17 24 17 14 5 . 7 8 9 22 14 18 35 36 29 16 Robot Miss Streak 6 | . 2 . 4 . . . 2 4 6 3 5 3 1 2 4 1 2 1 2 . 1 3 4 . 4 2 4 Penetration Max 1 | . . . . . . . . . . . . 1 1 1 1 1 . . . 1 . 1 . . . . . Secondary Targets 8 | . 4 . . . . . . 1 . . . 1 . 1 1 . . . . . . . . . . . . Max Gunslinging Chain 1 | . 1 . . . . . . 1 . . . 1 . 1 1 . . . . . . . . . . . . Capacitor 152 | . . . . . . . . . . . . . . . . . . . . . . . . . . 28 124 Shots Hit Robots 1276 | 2 52 1 84 1 9 . 97 79 86 41 139 54 76 78 112 1 . 14 18 4 33 78 18 17 55 23 104 Core Hits 782 | 2 23 1 39 . . . 28 52 51 30 61 37 31 53 62 5 1 8 29 2 15 59 7 53 69 13 51 Critical Kills 20 | . 1 . 1 . . . . . . . . 6 5 5 . . . 1 . . . . . . . . 1 Critical Parts Destroyed 38 | . . . . . . . . . . . 2 6 7 12 4 2 . 1 . 1 . . . . . 1 2 Critical Strikes 95 | . 3 . 1 . . . 4 . 4 . 12 13 12 17 4 2 . 2 . 1 . 8 . . 3 2 7 Burn 10 | . 2 . . . . . 4 . 4 . . . . . . . . . . . . . . . . . . Meltdown 2 | . . . 1 . . . . . . . . . . . . . . . . . . . . . . . 1 Destroy 54 | . 1 . . . . . . . . . 2 13 12 17 4 2 . 2 . 1 . . . . . . . Blast 20 | . . . . . . . . . . . 10 . . . . . . . . . . 7 . . 3 . . Corrupt 5 | . . . . . . . . . . . . . . . . . . . . . . 1 . . . 1 3 Detonate 3 | . . . . . . . . . . . . . . . . . . . . . . . . . . 1 2 Sunder 1 | . . . . . . . . . . . . . . . . . . . . . . . . . . . 1 Melee Attacks 11 | . . . . 1 9 . . 1 . . . . . . . . . . . . . . . . . . . Impact 1 | . . . . . . . . 1 . . . . . . . . . . . . . . . . . . . Slashing . | . . . . . . . . . . . . . . . . . . . . . . . . . . . . Piercing . | . . . . . . . . . . . . . . . . . . . . . . . . . . . . Sneak Attacks 9 | . . . . 1 8 . . . . . . . . . . . . . . . . . . . . . . Combat Hostiles . | . . . . . . . . . . . . . . . . . . . . . . . . . . . . Follow-up Attacks . | . . . . . . . . . . . . . . . . . . . . . . . . . . . . Damage Inflicted 54604 | 25 607 21 2528 . . 7 1757 2794 2122 1111 6185 2587 1952 3666 3767 365 88 332 1268 170 1695 7681 669 3273 3815 1157 4962 Guns 17220 | 25 540 . . . . . 574 1465 1805 1092 1014 1138 1952 2569 2831 74 . 332 192 170 67 28 . . . 228 1124 Cannons 23366 | . 67 21 1898 . . . 1182 . . . 3815 636 . . . . . . . . 1628 5266 599 330 3815 781 3328 Explosions 13597 | . . . 630 . . . . 1329 309 . 1349 813 . 1027 847 291 88 . 1076 . . 2361 70 2892 . 148 367 Melee . | . . . . . . . . . . . . . . . . . . . . . . . . . . . . Ramming 421 | . . . . . . 7 1 . 8 19 7 . . 70 89 . . . . . . 26 . 51 . . 143 Kinetic 19642 | . 207 . . . . . . . 939 23 3143 1666 683 2569 2508 74 . . 97 170 67 3612 . 69 3815 . . Thermal 14887 | 25 400 21 1898 . . . 1756 493 1114 1069 1947 353 1269 . 323 52 . 332 95 . 1628 792 . . . 148 1172 Explosive 10254 | . . . 630 . . . . 1057 61 . 1088 568 . 66 650 101 88 . 1076 . . 1907 70 2892 . . . Electromagnetic 7764 | . . . . . . . . 1244 . . . . . 961 197 138 . . . . . 1344 599 261 . 781 2239 Impact . | . . . . . . . . . . . . . . . . . . . . . . . . . . . . Slashing . | . . . . . . . . . . . . . . . . . . . . . . . . . . . . Piercing . | . . . . . . . . . . . . . . . . . . . . . . . . . . . . Entropic 1636 | . . . . . . . . . . . . . . . . . . . . . . . . . . 228 1408 Highest Corruption 100 | . . . 1 1 1 1 . 3 3 4 4 1 1 1 4 4 5 5 9 . . 10 10 20 20 25 100 Average Corruption 7 | . . . 1 1 1 1 . 1 2 1 3 1 1 1 2 4 4 5 6 . . 8 10 17 11 15 53 Corruption Purged 8 | . . . . . . . . . 3 . 4 . 1 . . . . . . . . . . . . . . Effects 423 | . . . 8 2 4 1 . 3 18 10 43 . 3 . 15 35 15 7 33 . . 40 35 56 2 14 79 Message Errors 117 | . . . 3 1 2 1 . 1 9 2 11 . . . 5 8 2 1 9 . . 9 12 20 1 4 16 Matter Fused 111 | . . . . . . . . . 4 2 14 . . . 7 10 6 4 9 . . 9 7 14 . 3 22 Heat Flow Errors 39 | . . . . . . . . . 1 . 5 . . . . 6 4 . 4 . . 3 7 3 1 3 2 Energy Discharges 60 | . . . 1 1 1 . . 1 1 1 5 . . . 2 2 1 2 7 . . 10 4 8 . 2 11 Parts Rejected 4 | . . . . . . . . . . . 1 . . . . . . . 1 . . 1 . . . . 1 Data Loss (minor) 49 | . . . 4 . 1 . . 1 3 4 6 . . . 1 9 2 . 2 . . 2 3 3 . 1 7 Data Loss (major) 10 | . . . . . . . . . . . . . . . . . . . . . . 2 . 4 . 1 3 Misfires 9 | . . . . . . . . . . . . . . . . . . . 1 . . 3 1 3 . . 1 Alerts 3 | . . . . . . . . . . . . . . . . . . . . . . . 1 . . . 2 Misdirections 4 | . . . . . . . . . . . . . . . . . . . . . . 1 . . . . 3 Weapon Failures 17 | . . . . . . . . . . 1 1 . 3 . . . . . . . . . . 1 . . 11 Overload Shots 1 | . . . . . . . . . . . . . . . . . . . . . . 1 . . . . . Overflow Damage 1886 | . . . 43 . . . . 51 70 . 239 11 . 97 84 17 . . 11 . 63 644 24 139 97 69 227 Projectiles 922 | . . . 37 . . . . . . . 97 . . . . . . . . . 63 401 24 12 97 69 122 Explosions 919 | . . . 6 . . . . 51 70 . 142 11 . 93 84 17 . . 11 . . 243 . 92 . . 99 Melee 45 | . . . . . . . . . . . . . . 4 . . . . . . . . . 35 . . 6 Knockbacks 68 | . . . . . . . . . . . 11 . . . 3 . . . . . . 19 . . 34 . 1 Impact 3 | . . . . . . . . . . . . . . . 2 . . . . . . . . . . . 1 Kinetic 58 | . . . . . . . . . . . 11 . . . . . . . . . . 17 . . 30 . . Secondary 7 | . . . . . . . . . . . . . . . 1 . . . . . . 2 . . 4 . . Self-Inflicted Damage 1030 | . . . 15 . . . . 95 . 9 27 . . 202 . . 11 . 15 . . 475 . 49 . . 132 Shots 22 | . . . 2 . . . . 3 . . 1 . . 2 . . 1 . 1 . . 7 . 3 . . 2 Rammed 27 | . . . . . . 1 1 . 2 4 2 . . 5 7 . . . . . . 5 . . . . . Targets Rammed 37 | . . . . . . 1 1 . 2 4 2 . . 6 7 . . . . . . 5 . 1 . . 8 Kicked 8 | . . . . . . . . . . . . . . . . . . . . . . . . . . . 8 Crushed 2 | . . . . . . . . . . . . . . 1 . . . . . . . . . 1 . . . Highest Temperature 539 | 30 255 45 195 . . . 276 132 98 21 234 186 . 8 312 243 286 356 272 62 44 311 212 539 310 239 334 Average Temperature 83 | 17 96 26 52 . . . 98 31 24 8 109 75 . 6 78 91 116 129 70 33 18 96 76 116 106 97 87 Received Heat Transfer 4084 | . 42 . 204 . . . 549 486 132 153 537 . 45 501 281 8 12 . 128 4 . 222 87 236 208 87 162 Effects 6 | . . . . . . . . . . . . . . . 1 . . . . . . 1 . 4 . . . Shutdowns 1 | . . . . . . . . . . . . . . . . . . . . . . . . 1 . . . Energy Bleed 1 | . . . . . . . . . . . . . . . 1 . . . . . . . . . . . . Interference 3 | . . . . . . . . . . . . . . . . . . . . . . 1 . 2 . . . Damage (minor) 1 | . . . . . . . . . . . . . . . . . . . . . . . . 1 . . . Siege Activations 47 | . . . . . . . . . . . . 4 5 5 7 . . . 1 1 2 12 1 1 6 2 . Total Turns 986 | . . . . . . . . . . . . 85 136 130 120 . . . 61 7 46 207 31 48 86 29 . Longest Duration 105 | . . . . . . . . . . . . 40 105 48 32 . . . 61 7 24 31 31 48 32 17 . Robots Corrupted 36 | . . . . . . . . 3 . . . . . 2 1 . . . . . . 8 3 1 . 7 11 Combat Hostiles 30 | . . . . . . . . 3 . . . . . . 1 . . . . . . 8 3 1 . 7 7 Parts Fried 65 | . . . . . . . . 9 . . . . . 2 . . . . . . . 12 7 . . 8 27 Impact Corruptions 7 | . . . . . . . . . . . . . . 1 . . . . . . . 1 . 4 . . 1 Robots Melted 5 | . . . 1 . . . 2 . . . 1 . . . . . . . . . . . . . . . 1 Combat Hostiles 4 | . . . . . . . 2 . . . 1 . . . . . . . . . . . . . . . 1 Parts Melted 53 | . 4 . 7 . . . 11 . 1 4 4 1 8 . 1 . . . 1 . . 3 . . 1 . 7 Heat Transferred 21336 | 62 1184 37 3219 . . . 3959 607 2037 1965 2694 400 1961 . 440 50 . 406 111 . 800 475 . . . 100 829 Parts Sabotaged 3 | . . . . . . . . . . . . . . . . . . . . . . . . . 3 . . Parts Stolen . | . . . . . . . . . . . . . . . . . . . . . . . . . . . . Parts Stripped . | . . . . . . . . . . . . . . . . . . . . . . . . . . . . Power Chain Reactions 8 | . . . . . . . . 6 . . . . . . . 1 . . . . . . . . . . 1 Missiles Intercepted . | . . . . . . . . . . . . . . . . . . . . . . . . . . . . Alert | -11 -10 -10 -9 -9 -9 -8 -8 -8 -7 -6 -6 -6 -6 -6 -5 -5 -5 -5 -4 -4 -4 -4 -4 -4 -4 -3 -3 ------- Run | Scr Mat Min Mat Min Exi Min Mat Sto Fac Fac Ext Cet Arc Hub Fac Upp Upp Zhi Pro Fac Was Fac Upp Upp War Pro Res Peak Influence 1502 | 5 305 5 490 163 . . 278 467 260 424 509 432 282 692 357 . . . . 115 42 1502 . . . . 409 Initial 338 | . 3 4 1 163 . . . . 79 127 152 124 96 . 338 . . . . 44 40 1 . . . . . Average 222 | 4 142 3 258 63 . . 110 252 61 201 270 273 65 185 247 . . . . 79 21 753 . . . . 161 Maximum Alert Level 4 | . 1 . 2 . . . 1 2 1 2 2 2 1 2 1 . . . . . . 4 . . . . 2 Low Security (%) 53 | 100 78 100 28 100 . 100 75 24 91 62 19 6 83 68 32 . . . . 100 100 6 . . . . 54 Level 1 35 | . 21 . 64 . . . 24 69 8 22 69 92 16 27 67 . . . . . . 22 . . . . 42 Level 2 5 | . . . 6 . . . . 6 . 14 11 . . 4 . . . . . . . 20 . . . . 2 Level 3 1 | . . . . . . . . . . . . . . . . . . . . . . 18 . . . . . Level 4 3 | . . . . . . . . . . . . . . . . . . . . . . 31 . . . . . Level 5 . | . . . . . . . . . . . . . . . . . . . . . . . . . . . . High Security . | . . . . . . . . . . . . . . . . . . . . . . . . . . . . Max Security . | . . . . . . . . . . . . . . . . . . . . . . . . . . . . Squads Dispatched 57 | . 3 . 4 . . . 3 3 3 5 2 . . 4 6 . . . 1 1 . 13 . 1 . . 8 Investigation 5 | . 2 . . . . . . 1 . . 1 . . . . . . . . . . 1 . . . . . Extermination 16 | . . . . . . . . . 3 1 . . . . 4 . . . . . . 5 . . . . 3 Reinforcement 28 | . 1 . 3 . . . 3 2 . 3 1 . . 3 2 . . . . 1 . 4 . . . . 5 Assault 7 | . . . 1 . . . . . . 1 . . . 1 . . . . 1 . . 2 . 1 . . . Garrison 1 | . . . . . . . . . . . . . . . . . . . . . . 1 . . . . . Intercept . | . . . . . . . . . . . . . . . . . . . . . . . . . . . . Construction Impeded 5 | . . . . . . . . . . . . . . 1 . . . . . . . 3 . . . . 1 Haulers Reinforced 6 | . . . . . . . . . . 1 . . . 1 2 . . . . 1 . . . . . . 1 Active Scanning Responses . | . . . . . . . . . . . . . . . . . . . . . . . . . . . . Cargo Convoy Interrupts 1 | . . . . . . . . . . 1 . . . . . . . . . . . . . . . . . Stealth | -11 -10 -10 -9 -9 -9 -8 -8 -8 -7 -6 -6 -6 -6 -6 -5 -5 -5 -5 -4 -4 -4 -4 -4 -4 -4 -3 -3 --------- Run | Scr Mat Min Mat Min Exi Min Mat Sto Fac Fac Ext Cet Arc Hub Fac Upp Upp Zhi Pro Fac Was Fac Upp Upp War Pro Res Distress Signals 42 | . 3 . 5 . . . 2 6 3 . 4 2 . 4 5 . . . . . . 7 . . . . 1 Communications Jammed 20 | . . . . . . . . . . . . . . . . . . . . . . . . . 16 . 4 Distress Signals 16 | . . . . . . . . . . . . . . . . . . . . . . . . . 16 . . Times Spotted 566 | . 19 . 44 2 . 4 23 32 24 8 45 19 26 36 31 12 8 . 27 2 6 65 4 23 64 8 34 Peak Tracking Total 15 | . 4 . 6 2 . 4 4 6 4 4 8 5 1 7 6 5 4 . 9 2 3 8 4 15 15 5 7 Tactical Retreats 23 | . 1 . . 1 . . 2 1 . . 4 . . 4 . . . . 1 . . 4 . . 3 . 2 Traps | -11 -10 -10 -9 -9 -9 -8 -8 -8 -7 -6 -6 -6 -6 -6 -5 -5 -5 -5 -4 -4 -4 -4 -4 -4 -4 -3 -3 ------- Run | Scr Mat Min Mat Min Exi Min Mat Sto Fac Fac Ext Cet Arc Hub Fac Upp Upp Zhi Pro Fac Was Fac Upp Upp War Pro Res Traps Triggered 7 | . . 1 1 . . . . 1 1 . . . . . . . . . . 1 . . . . 1 . 1 Indirectly . | . . . . . . . . . . . . . . . . . . . . . . . . . . . . Trap Hack Attempts . | . . . . . . . . . . . . . . . . . . . . . . . . . . . . Triggered . | . . . . . . . . . . . . . . . . . . . . . . . . . . . . Disarmed . | . . . . . . . . . . . . . . . . . . . . . . . . . . . . Reprogrammed . | . . . . . . . . . . . . . . . . . . . . . . . . . . . . Reused 1 | . . . . . . . . . . . . . . . 1 . . . . . . . . . . . . Traps Reconfigurated 28 | . . . . . . . . 6 5 . 4 . . . 6 . . . . . . 6 . . . . 1 Traps Extracted . | . . . . . . . . . . . . . . . . . . . . . . . . . . . . Installed 1 | . . 1 . . . . . . . . . . . . . . . . . . . . . . . . . Triggered 10 | . . . . . . . . . . 1 . . . . 1 . . . . . . . . . 7 1 . Machines | -11 -10 -10 -9 -9 -9 -8 -8 -8 -7 -6 -6 -6 -6 -6 -5 -5 -5 -5 -4 -4 -4 -4 -4 -4 -4 -3 -3 ---------- Run | Scr Mat Min Mat Min Exi Min Mat Sto Fac Fac Ext Cet Arc Hub Fac Upp Upp Zhi Pro Fac Was Fac Upp Upp War Pro Res Machines Disabled 67 | . . . 2 . . . 1 5 3 . 2 4 2 22 . 1 . 1 2 1 . 17 1 . 1 . 2 Max in Single Turn 18 | . . . 1 . . . 1 1 2 . 1 1 1 18 . 1 . 1 1 . . 6 1 . 1 . 1 Garrison Access 8 | . . . . . . . . . 2 2 . . . 1 1 . . . . 1 . 1 . . . . . Network Hub 2 | . . . . . . . . . . . . . . 2 . . . . . . . . . . . . . Energy Cycler 3 | . . . . . . . . . . . 3 . . . . . . . . . . . . . . . . Machines Sabotaged . | . . . . . . . . . . . . . . . . . . . . . . . . . . . . Garrisons Compromised 1 | . . . . . . . . . . 1 . . . . . . . . . . . . . . . . . Overloaded Fab Kills . | . . . . . . . . . . . . . . . . . . . . . . . . . . . . Fab Network Shutdowns 1 | . . . . . . . . . . . . . . . . . . . . . . 1 . . . . . Hacking | -11 -10 -10 -9 -9 -9 -8 -8 -8 -7 -6 -6 -6 -6 -6 -5 -5 -5 -5 -4 -4 -4 -4 -4 -4 -4 -3 -3 --------- Run | Scr Mat Min Mat Min Exi Min Mat Sto Fac Fac Ext Cet Arc Hub Fac Upp Upp Zhi Pro Fac Was Fac Upp Upp War Pro Res Machines Accessed 99 | . 8 . 9 1 2 . 5 8 12 5 9 1 . 5 8 . . 6 . 3 . 12 . 1 1 . 3 Terminals 56 | . 6 . 6 . . . 4 6 4 3 9 1 . 4 3 . . . . 2 . 5 . . . . 3 Fabricators 5 | . . . . . . . . . 2 . . . . . 1 . . . . . . 2 . . . . . Repair Stations 8 | . . . 1 . . . 1 2 1 . . . . . 1 . . . . . . 2 . . . . . Recycling Units 7 | . 2 . 1 . . . . . 2 . . . . . 1 . . . . . . 1 . . . . . Scanalyzers 5 | . . . 1 . . . . . 1 1 . . . . 1 . . . . . . 1 . . . . . Garrison Access 7 | . . . . . . . . . 2 1 . . . 1 1 . . . . 1 . 1 . . . . . Total Hacks 435 | . 26 . 28 1 2 . 13 27 35 14 23 2 . 18 71 . . 36 . 26 . 91 . 1 1 . 20 Successful 301 | . 11 . 17 1 2 . 7 19 26 10 13 . . 14 56 . . 36 . 19 . 60 . 1 1 . 8 Failed 132 | . 15 . 10 . . . 6 8 9 4 10 2 . 4 14 . . . . 7 . 31 . . . . 12 Catastrophic 21 | . 3 . 1 . . . . 2 1 . 2 . . . 1 . . . . . . 8 . . . . 3 Database Lockouts 2 | . . . 1 . . . . . . . . . . . 1 . . . . . . . . . . . . Manual 179 | . 16 . 11 . 1 . 4 9 8 5 12 . . 8 31 . . . 1 16 . 52 . . . . 5 Terminals 257 | . 23 . 19 . . . 11 21 10 8 23 2 . 17 29 . . . . 25 . 49 . . . . 20 Fabricators 32 | . . . . . . . . . 7 . . . . . 12 . . . . . . 13 . . . . . Repair Stations 41 | . . . 2 . . . 2 6 4 . . . . . 12 . . . . . . 15 . . . . . Recycling Units 22 | . 3 . 2 . . . . . 5 . . . . . 7 . . . . . . 5 . . . . . Scanalyzers 34 | . . . 5 . . . . . 6 5 . . . . 10 . . . . . . 8 . . . . . Garrison Access 8 | . . . . . . . . . 3 1 . . . 1 1 . . . . 1 . 1 . . . . . Terminal Hacks 149 | . 6 . 7 1 2 . 3 9 3 3 11 . . 9 15 . . 36 . 15 . 19 . 1 1 . 8 Record 27 | . . . . . 1 . . . . . . . . . . . . 24 . 2 . . . . . . . Part Schematic 11 | . . . . . . . . 1 . . 1 . . . 1 . . 4 . . . 4 . . . . . Robot Schematic 2 | . 1 . . . . . . . . . . . . . 1 . . . . . . . . . . . . Robot Analysis 10 | . 3 . 1 . . . . . 1 . . . . . . . . 4 . . . 1 . . . . . Prototype ID Bank 4 | . . . . . . . . . . . . . . . . . . 4 . . . . . . . . . Open Door 9 | . . . . 1 . . . 3 . 1 2 . . . . . . . . . . . . 1 1 . . Level Access Points 4 | . . . . . . . . . . 1 . . . 1 1 . . . . 1 . . . . . . . Branch Access Points 6 | . . . . . . . 1 . . 1 . . . . 1 . . . . 1 . 1 . . . . 1 Machine Index 2 | . . . . . . . . . . . . . . 1 . . . . . . . 1 . . . . . Terminal Index 9 | . . . 1 . . . . 1 1 . 1 . . 1 1 . . . . 1 . 1 . . . . 1 Fabricator Index 2 | . . . . . . . . . . . . . . . 1 . . . . 1 . . . . . . . Repair Station Index 2 | . . . . . . . . . . . . . . . . . . . . 1 . . . . . . 1 Recycling Unit Index 1 | . . . . . . . . . . . . . . . . . . . . 1 . . . . . . . Garrison Index 1 | . . . . . . . . . . . . . . . . . . . . 1 . . . . . . . Alert Level 7 | . . . . . . . . 1 . . 1 . . . 2 . . . . 1 . 2 . . . . . Unreport Threat 15 | . . . . . . . 2 1 . . 2 . . 1 1 . . . . . . 6 . . . . 2 Locate Traps 13 | . 2 . 2 . . . . 1 1 . 3 . . 2 1 . . . . 1 . . . . . . . Maintenance Status 2 | . . . . . . . . . . . . . . 1 . . . . . 1 . . . . . . . Security Status 1 | . . . . . . . . . . . . . . 1 . . . . . . . . . . . . . Transport Status 1 | . . . . . . . . . . . . . . . . . . . . . . . . . . . 1 Recall Extermination 3 | . . . . . . . . . . . . . . . 2 . . . . . . 1 . . . . . Recall Reinforcements 3 | . . . . . . . . . . . 1 . . . 1 . . . . 1 . . . . . . . Recall Assault 2 | . . . . . . . . . . . . . . . . . . . . . . 2 . . . . . Hauler Manifests 5 | . . . 1 . . . . 1 . . . . . . 1 . . . . 1 . . . . . . 1 Zone Layout 6 | . . . 2 . . . . . . . . . . 1 1 . . . . 1 . . . . . . 1 EX-Prototype ID Bank 1 | . . . . . 1 . . . . . . . . . . . . . . . . . . . . . . Fabricator Hacks 18 | . . . . . . . . . 4 . . . . . 8 . . . . . . 6 . . . . . Network Status 2 | . . . . . . . . . 1 . . . . . 1 . . . . . . . . . . . . Load Schematic 9 | . . . . . . . . . 2 . . . . . 4 . . . . . . 3 . . . . . Build 7 | . . . . . . . . . 1 . . . . . 3 . . . . . . 3 . . . . . Repair Station Hacks 37 | . . . 2 . . . 2 6 4 . . . . . 11 . . . . . . 12 . . . . . Scan Component 19 | . . . 1 . . . 1 3 2 . . . . . 6 . . . . . . 6 . . . . . Repair 18 | . . . 1 . . . 1 3 2 . . . . . 5 . . . . . . 6 . . . . . Recycling Unit Hacks 6 | . 2 . . . . . . . 2 . . . . . 1 . . . . . . 1 . . . . . Retrieve Components 6 | . 2 . . . . . . . 2 . . . . . 1 . . . . . . 1 . . . . . Scanalyzer 31 | . . . 5 . . . . . 6 5 . . . . 8 . . . . . . 7 . . . . . Insert Component 15 | . . . 2 . . . . . 3 2 . . . . 4 . . . . . . 4 . . . . . Analyze 16 | . . . 3 . . . . . 3 3 . . . . 4 . . . . . . 3 . . . . . Garrison Access Hacks 7 | . . . . . . . . . 2 1 . . . 1 1 . . . . 1 . 1 . . . . . Seal Access 7 | . . . . . . . . . 2 1 . . . 1 1 . . . . 1 . 1 . . . . . Unauthorized Hacks 53 | . 3 . 3 . . . 2 4 5 1 2 . . 4 12 . . . . 3 . 14 . . . . . Terminals 31 | . 3 . 3 . . . 2 4 1 1 2 . . 4 4 . . . . 3 . 4 . . . . . Track 4 | . . . . . . . . . . 1 . . . . 1 . . . . 1 . 1 . . . . . Assimilate 3 | . 1 . . . . . . . . . . . . 2 . . . . . . . . . . . . . Botnet 17 | . 1 . 2 . . . 2 2 1 . 2 . . 2 2 . . . . 1 . 2 . . . . . Disrupt 2 | . . . . . . . . 1 . . . . . . . . . . . . . 1 . . . . . Operators 5 | . 1 . 1 . . . . 1 . . . . . . 1 . . . . 1 . . . . . . . Fabricators 12 | . . . . . . . . . 2 . . . . . 4 . . . . . . 6 . . . . . Report 3 | . . . . . . . . . 1 . . . . . 1 . . . . . . 1 . . . . . Prioritize 3 | . . . . . . . . . . . . . . . 1 . . . . . . 2 . . . . . Siphon 3 | . . . . . . . . . . . . . . . 1 . . . . . . 2 . . . . . Haulers 3 | . . . . . . . . . 1 . . . . . 1 . . . . . . 1 . . . . . Repair Stations . | . . . . . . . . . . . . . . . . . . . . . . . . . . . . Recycling Units 10 | . . . . . . . . . 2 . . . . . 4 . . . . . . 4 . . . . . Monitor 2 | . . . . . . . . . . . . . . . 1 . . . . . . 1 . . . . . Reject 3 | . . . . . . . . . 1 . . . . . 1 . . . . . . 1 . . . . . Recyclers 2 | . . . . . . . . . . . . . . . 1 . . . . . . 1 . . . . . Mask 3 | . . . . . . . . . 1 . . . . . 1 . . . . . . 1 . . . . . Scanalyzers . | . . . . . . . . . . . . . . . . . . . . . . . . . . . . Garrison Access . | . . . . . . . . . . . . . . . . . . . . . . . . . . . . Data Cores Recovered 3 | . 2 . . . . . . . . . . . . . . . . . . . . 1 . . . . . Used 3 | . 2 . . . . . . . . . . . . . . . . . . . . 1 . . . . . Hacking Detections 66 | . 6 . 9 . . . 4 7 9 2 7 1 . 3 4 . . . . 2 . 9 . . . . 3 Full Trace Events 4 | . 2 . . . . . . . . . 1 . . . . . . . . . . 1 . . . . . Feedback Events 1 | . . . . . . . . . . . . . . . . . . . . . . 1 . . . . . Hackware Fried 1 | . . . . . . . . . . . . . . . . . . . . . . 1 . . . . . Feedback Blocked . | . . . . . . . . . . . . . . . . . . . . . . . . . . . . Robot Schematics Acquired 2 | . 1 . . . . . . . . . . . . . 1 . . . . . . . . . . . . Robots Built 6 | . . . . . . . . . . . . . . . 4 . . . . . . 2 . . . . . Matter 714 | . . . . . . . . . . . . . . . 476 . . . . . . 238 . . . . . Time 154 | . . . . . . . . . . . . . . . 126 . . . . . . 28 . . . . . Total Robot Build Rating 36 | . . . . . . . . . . . . . . . 24 . . . . . . 12 . . . . . Part Schematics Acquired 25 | . . . 2 . . . . 1 3 2 1 . . . 5 . . 4 . . . 7 . . . . . Parts Built 6 | . . . . . . . . . 2 . . . . . 1 . . . . . . 3 . . . . . Matter 819 | . . . . . . . . . 168 . . . . . 213 . . . . . . 438 . . . . . Time 161 | . . . . . . . . . 42 . . . . . 38 . . . . . . 81 . . . . . Total Part Build Rating 34 | . . . . . . . . . 8 . . . . . 5 . . . . . . 21 . . . . . Parts Repaired 18 | . . . 1 . . . 1 3 2 . . . . . 5 . . . . . . 6 . . . . . Time 863 | . . . 38 . . . 136 96 96 . . . . . 270 . . . . . . 227 . . . . . Parts Recycled . | . . . . . . . . . . . . . . . . . . . . . . . . . . . . Recycled Matter . | . . . . . . . . . . . . . . . . . . . . . . . . . . . . Retrieved Matter . | . . . . . . . . . . . . . . . . . . . . . . . . . . . . Retrieved Components 28 | . 8 . . . . . . . 16 . . . . . 2 . . . . . . 2 . . . . . Parts Scanalyzed 14 | . . . 2 . . . . . 3 2 . . . . 4 . . . . . . 3 . . . . . Part Schematics Acquired 14 | . . . 2 . . . . . 3 2 . . . . 4 . . . . . . 3 . . . . . Parts Damaged 1 | . . . 1 . . . . . . . . . . . . . . . . . . . . . . . . Bothacking | -11 -10 -10 -9 -9 -9 -8 -8 -8 -7 -6 -6 -6 -6 -6 -5 -5 -5 -5 -4 -4 -4 -4 -4 -4 -4 -3 -3 ------------ Run | Scr Mat Min Mat Min Exi Min Mat Sto Fac Fac Ext Cet Arc Hub Fac Upp Upp Zhi Pro Fac Was Fac Upp Upp War Pro Res Used RIF Installer . | . . . . . . . . . . . . . . . . . . . . . . . . . . . . Robots Hacked 8 | . . . . 1 7 . . . . . . . . . . . . . . . . . . . . . . Non-combat 4 | . . . . 1 3 . . . . . . . . . . . . . . . . . . . . . . Combat 4 | . . . . . 4 . . . . . . . . . . . . . . . . . . . . . . Robot Hacks Applied 8 | . . . . 1 7 . . . . . . . . . . . . . . . . . . . . . . parse_system 8 | . . . . 1 7 . . . . . . . . . . . . . . . . . . . . . . Relay Couplers Released 9 | . . . . . . . . . . 2 . . . 7 . . . . . . . . . . . . . Machine Destruction 5 | . . . . . . . . . . 2 . . . 3 . . . . . . . . . . . . . Programmers 4 | . . . . . . . . . . . . . . 4 . . . . . . . . . . . . . Robots Rewired 26 | . . . . . . . . . 2 . 15 . . . . 1 . . 1 . . . . 2 4 . 1 Allies Hacked 7 | . . . . . . . . . 1 . . . . . . 2 . . 2 . . 2 . . . . . Hacks Repelled . | . . . . . . . . . . . . . . . . . . . . . . . . . . . . Allies | -11 -10 -10 -9 -9 -9 -8 -8 -8 -7 -6 -6 -6 -6 -6 -5 -5 -5 -5 -4 -4 -4 -4 -4 -4 -4 -3 -3 -------- Run | Scr Mat Min Mat Min Exi Min Mat Sto Fac Fac Ext Cet Arc Hub Fac Upp Upp Zhi Pro Fac Was Fac Upp Upp War Pro Res Total Allies 60 | . . 3 . . . . . . 2 . 16 . . 1 4 3 . . 3 . 18 3 . 2 4 . 1 Largest Group 19 | . . 3 3 . . . . . 1 . 4 . . 1 4 7 5 5 5 1 19 16 . 2 4 . 1 Highest-Rated Group 717 | . . 40 40 . . . . . 40 . 119 . . 10 216 279 215 215 219 49 717 592 . 79 213 . 129 Highest-Rated Ally 129 | . . 16 16 . . . . . 40 . 37 . . 10 54 54 54 54 58 49 50 127 . 49 65 . 129 Total Orders 73 | . . . . 2 . . . 10 13 7 . . . 11 5 1 2 2 3 8 1 6 1 . 1 . . STAY 8 | . . . . . . . . . 1 1 . . . 2 . . . 1 . 3 . . . . . . . ROAM 1 | . . . . . . . . . . . . . . 1 . . . . . . . . . . . . . FOLLOW 7 | . . . . . . . . . 2 1 . . . 2 . . . 1 . 1 . . . . . . . EXPLORE 11 | . . . . . . . . 10 . . . . . 1 . . . . . . . . . . . . . RETURN 46 | . . . . 2 . . . . 10 5 . . . 5 5 1 2 . 3 4 1 6 1 . 1 . . Ally Attacks 449 | . . . 11 . . . . . 1 . 60 . . . . 29 45 . 80 4 21 152 . 13 29 . 4 Total Damage 10774 | . . . 113 . . . . . 39 . 1174 . . . . 614 1343 . 1819 145 721 3171 . 399 1051 . 185 Kills 70 | . . . 2 . . . . . . . 10 . . . . 8 10 . 15 2 1 13 . 2 7 . . Allies Corrupted 1 | . . . . . . . . . . . . . . . . . . . . . . . . . . . 1 Allies Melted 5 | . . . . . . . . . . 1 2 . . . . . . . . . . . . . 2 . . Intel | -11 -10 -10 -9 -9 -9 -8 -8 -8 -7 -6 -6 -6 -6 -6 -5 -5 -5 -5 -4 -4 -4 -4 -4 -4 -4 -3 -3 ------- Run | Scr Mat Min Mat Min Exi Min Mat Sto Fac Fac Ext Cet Arc Hub Fac Upp Upp Zhi Pro Fac Was Fac Upp Upp War Pro Res Robot Analysis Total 10 | . 3 . 1 . . . . . 1 . . . . . . . . 4 . . . 1 . . . . . Derelict Logs Recovered 5 | . . . . 1 . . . . . . . . . . . 2 1 . . . . . . 1 . . . Drone Launches 101 | . . . . 3 . . . 46 13 4 . . . 7 5 1 2 . 4 6 1 5 2 2 . . . Drone Recoveries 82 | . . . . 3 . . . 30 13 4 . . . 6 5 1 2 . 4 5 . 6 1 2 . . . Exploration | -11 -10 -10 -9 -9 -9 -8 -8 -8 -7 -6 -6 -6 -6 -6 -5 -5 -5 -5 -4 -4 -4 -4 -4 -4 -4 -3 -3 ------------- Run | Scr Mat Min Mat Min Exi Min Mat Sto Fac Fac Ext Cet Arc Hub Fac Upp Upp Zhi Pro Fac Was Fac Upp Upp War Pro Res Turns Passed 33439 | 20 910 485 1635 1181 1294 141 1081 1287 3151 1494 2613 827 1889 719 2364 1598 596 382 1247 237 785 2505 1025 1251 962 443 1317 Spaces Moved 16113 | 8 645 376 923 319 790 85 462 454 1606 647 1168 359 275 260 1085 980 356 194 676 120 415 1185 593 694 474 196 768 Core . | . . . . . . . . . . . . . . . . . . . . . . . . . . . . Treads 13536 | . . . 445 319 790 85 462 454 1606 502 1140 359 275 260 1085 980 356 194 676 120 415 1185 593 694 474 67 . Legs 2108 | . 357 376 478 . . . . . . . . . . . . . . . . . . . . . . 129 768 Wheels 469 | 8 288 . . . . . . . . 145 28 . . . . . . . . . . . . . . . . Hover . | . . . . . . . . . . . . . . . . . . . . . . . . . . . . Flight . | . . . . . . . . . . . . . . . . . . . . . . . . . . . . Fastest Speed 90 | 90 100 120 120 160 160 160 160 155 160 156 155 160 160 160 160 160 160 160 160 160 160 160 160 160 160 160 118 Average Speed 156 | 93 111 120 139 171 160 160 160 158 160 196 161 164 160 160 160 160 160 160 160 160 160 160 160 160 160 191 124 Slowest Speed 440 | 100 200 120 160 260 160 160 160 260 160 260 345 265 160 160 160 160 160 160 260 160 160 160 160 160 160 440 200 Overloaded Moves . | . . . . . . . . . . . . . . . . . . . . . . . . . . . . Propulsion Burnouts . | . . . . . . . . . . . . . . . . . . . . . . . . . . . . Robots Hopped . | . . . . . . . . . . . . . . . . . . . . . . . . . . . . Cave-ins Triggered 1 | . . . . . . . . . . . . . . . . . . . . . . . . 1 . . . Exploration Rate (%) 55 | 3 87 75 74 65 91 20 30 83 32 15 84 80 98 35 16 90 50 62 78 5 97 39 61 70 64 43 12 Regions Visited 27 Branch Regions 17 Pre-discovered Areas 7 | . . 1 . . 1 . . . . . . . . . . 1 1 3 . . . . . . . . . Known Exits Taken 13 | . . . . 1 . . 1 . 1 1 . . . 1 1 1 1 . 1 . . 1 1 1 . 1 . Unknown Exits Taken 12 | 1 1 1 1 . 1 1 . 1 . . 1 1 1 . . . . 1 . . . . . . 1 . . Scrap Searched 13 | . . 1 . 2 . . . . . . . . . . . 4 2 . 2 . . . 1 1 . . . Spaces Dug 150 | . . . 14 . . . . 5 . . 50 1 . . . 18 . . 19 1 . 27 2 13 . . . Terrain Destroyed 1128 | . . . 23 . . . . 52 8 . 108 25 7 329 31 20 14 . 99 1 2 163 8 156 17 16 49 Melee 1 | . . . . . . . . 1 . . . . . . . . . . . . . . . . . . . Projectile 150 | . . . . . . . . . . . 31 10 7 13 3 . . . 3 1 2 29 2 19 17 1 12 AOE 977 | . . . 23 . . . . 51 8 . 77 15 . 316 28 20 14 . 96 . . 134 6 137 . 15 37 Terrain Rammed . | . . . . . . . . . . . . . . . . . . . . . . . . . . . . Walls Destroyed . | . . . . . . . . . . . . . . . . . . . . . . . . . . . . Machines Disabled . | . . . . . . . . . . . . . . . . . . . . . . . . . . . . Actions | -11 -10 -10 -9 -9 -9 -8 -8 -8 -7 -6 -6 -6 -6 -6 -5 -5 -5 -5 -4 -4 -4 -4 -4 -4 -4 -3 -3 --------- Run | Scr Mat Min Mat Min Exi Min Mat Sto Fac Fac Ext Cet Arc Hub Fac Upp Upp Zhi Pro Fac Was Fac Upp Upp War Pro Res Total 22664 | 19 778 409 1148 953 813 90 679 878 2059 804 1705 515 1640 457 1575 1002 377 251 779 159 497 1636 643 790 619 265 1124 Wait 4009 | . 15 21 98 622 . 5 94 266 255 86 242 26 1262 114 330 9 13 21 34 27 26 242 13 28 27 20 113 Move 16086 | 7 644 375 922 318 789 84 461 453 1605 646 1167 358 274 259 1084 979 355 193 675 120 414 1184 592 692 473 195 768 Hop . | . . . . . . . . . . . . . . . . . . . . . . . . . . . . Pick Up 271 | 4 26 3 21 4 5 . 17 9 17 6 21 22 11 2 21 1 . 3 1 1 4 21 6 6 9 6 24 Fast Attach 175 | 1 10 . 7 1 . . 7 14 15 6 27 8 3 3 8 . 1 6 11 1 1 6 2 2 7 6 22 Attach 125 | 2 2 . 4 . 2 . 3 5 7 4 12 13 4 2 4 . . 1 2 1 1 14 2 8 8 4 20 Detach 23 | . . . . 2 . . . 1 3 3 . . . 1 . . . 1 2 . . 3 . 4 1 . 2 Swap 266 | 1 13 . 11 2 3 . 10 27 38 13 25 5 1 17 21 7 5 . 10 4 9 25 7 5 4 . 3 Drop 356 | 3 32 3 19 3 5 . 21 23 35 9 42 30 11 4 23 1 1 8 8 . 6 18 7 3 14 6 21 Fire 1180 | 1 36 1 66 . . . 65 72 63 27 104 53 74 49 77 4 2 16 33 5 36 118 14 35 61 28 140 Melee 11 | . . . . 1 9 . . 1 . . . . . . . . . . . . . . . . . . . Ram 3 | . . . . . . . . . . 3 . . . . . . . . . . . . . . . . . Kick 8 | . . . . . . . . . . . . . . . . . . . . . . . . . . . 8 Crush 26 | . . . . . . 1 1 . 2 1 2 . . 6 7 . . . . . . 5 . 1 . . . Escape Stasis 6 | . . 5 . . . . . . . . . . . . . . . . . . . . . 1 . . . Rewire 111 | . . . . . . . . . 19 . 63 . . . . 1 . 2 3 . . . . 5 15 . 3 Trap 1 | . . 1 . . . . . . . . . . . . . . . . . . . . . . . . . Miscellaneous 7 | . . . . . . . . 7 . . . . . . . . . . . . . . . . . . . Route ------- -11/Scrapyard -10/Materials (discovered 4 exits: *Mat x3 / [*Min]) -10/Mines -9/Materials (discovered 3 exits: *Mat x2 / *Min) -9/Mines (discovered 2 exits: *Mat / *Exi) -9/Exiles (discovered 2 exits: [*Min x2]) -8/Mines -8/Materials (discovered 2 exits: *Sto x2) -8/Storage -7/Factory (discovered 2 exits: *Fac / *Low) -6/Factory (discovered 8 exits: Fac x4 / Low x2 / *Ext x2) -6/Extension (discovered 3 exits: *Fac x2 / *Cet) -6/Cetus (discovered 2 exits: *Fac / [*Arc]) -6/Archives (discovered 3 exits: *Fac / *Hub x2) -6/Hub_04(d) (discovered 4 exits: *Fac x4) -5/Factory (discovered 6 exits: Fac x4 / *Upp x2) -5/Upper Caves -5/Upper Caves (discovered 2 exits: *Fac / *Zhi) -5/Zhirov -4/Proximity Caves -4/Factory (discovered 6 exits: Res x4 / Upp x2) -4/Waste -4/Factory (discovered 2 exits: *Upp x2) -4/Upper Caves -4/Upper Caves (discovered 2 exits: Res / *War) -4/Warlord -3/Proximity Caves -3/Research (discovered 3 exits: Arm / Tes x2) History --------- Turn | Location | Event 8 | -11/Scrapyard | Discovered new exit (range 3) 21 | -11/Scrapyard | Entered Materials 104 | -10/Materials | Discovered new exit (range 6) 271 | -10/Materials | Discovered new exit (range 16) 378 | -10/Materials | Discovered new exit (range 7) 576 | -10/Materials | Discovered new exit (range 9) 689 | -10/Materials | Build established: Mutant 931 | -10/Materials | Entered Mines 936 | -10/Mines | Assisted by bots powering up and referring to "LRC-V3" 990 | -10/Mines | Found a damaged Exp. Sensor Array with a note attached 993 | -10/Mines | Found Prototype Device 1327 | -10/Mines | Discovered new exit (range 15) 1332 | -10/Mines | Learned location of Storage (-8) 1334 | -10/Mines | Found a hidden stash of uninstalled traps 1416 | -10/Mines | Entered Materials 1416 | -9/Materials | Accompanied by 3 allies 1416 | -9/Materials | Evolved 2 slots: Propulsion x1, Utility x1 1588 | -9/Materials | Discovered new exit (range 16) 1743 | -9/Materials | Central database locked down 1784 | -9/Materials | Discovered new exit (range 12) 2030 | -9/Materials | Discovered new exit (range 6) 2196 | -9/Materials | Repaired Lgt. Nuclear Core 2558 | -9/Materials | Build established: Scavenger-Mutant 2593 | -9/Materials | Identified Exp. Sensor Array 3016 | -9/Materials | First assault squad dispatched 3051 | -9/Materials | Entered Mines 3101 | -9/Mines | Learned Materials emergency access door positions 3104 | -9/Mines | Assembled infested the area 3861 | -9/Mines | Discovered new exit (range 6) 4115 | -9/Mines | Found the Drone Emporium 4123 | -9/Mines | Found Prototype Device 4123 | -9/Mines | Identified Sensor Drone Bay 4204 | -9/Mines | Deemed a non-threat by the Exiles lab entrance 4207 | -9/Mines | Discovered new exit (range 5) 4218 | -9/Mines | Identified exit to Exiles 4232 | -9/Mines | Entered Exiles 4256 | -9/Exiles | Discovered new exit (range 14) 4293 | -9/Exiles | Met 8R-AWN 4325 | -9/Exiles | Met EX-HEX 4456 | -9/Exiles | Met EX-BIN 4546 | -9/Exiles | Met EX-DEC 4553 | -9/Exiles | Learned location of Zion (-6) 4620 | -9/Exiles | Visited The Gauntlet 4853 | -9/Exiles | Discovered new exit (range 10) 4981 | -9/Exiles | Aligned with FarCom system 4983 | -9/Exiles | Given EX-Vault access code 5019 | -9/Exiles | Opened EX-Vault 5034 | -9/Exiles | Found Trap Reconfigurator 5046 | -9/Exiles | Found Deploy-a-Sentry 5052 | -9/Exiles | Found Deploy-a-Sentry 5055 | -9/Exiles | Found Deploy-a-Sentry 5092 | -9/Exiles | Found YOLO Cannon 5128 | -9/Exiles | Warned to stay clear of 0b10 Research branches 5526 | -9/Exiles | Stole three prototypes: Trap Reconfigurator, YOLO Cannon, Deploy-a-Sentry 5526 | -9/Exiles | Entered Mines 5656 | -8/Mines | Discovered new exit (range 8) 5667 | -8/Mines | Entered Materials 5667 | -8/Materials | Evolved 2 slots: Propulsion x1, Utility x1 5668 | -8/Materials | Discovered new exit (range 14) 5707 | -8/Materials | Identified exit to Storage 6687 | -8/Materials | Repaired Broken Exp. Sensor Array 6748 | -8/Materials | Entered Storage 7042 | -8/Storage | Destroyed 8 combat bots 7191 | -8/Storage | Discovered new exit (range 54) 7554 | -8/Storage | Repaired Adv. Treads 7555 | -8/Storage | Repaired Lgt. Treads 7588 | -8/Storage | Repaired Rnf. Ion Engine 7812 | -8/Storage | Core integrity fell below 50% 8035 | -8/Storage | Entered Factory 8035 | -7/Factory | Evolved 2 slots: Utility x2 8037 | -7/Factory | FarCom data flow suspended 9055 | -7/Factory | Discovered new exit (range 15) 9552 | -7/Factory | Build established: Hacker-Mutant 9680 | -7/Factory | Identified exit to Factory 9905 | -7/Factory | Repaired Lgt. Treads 9977 | -7/Factory | Repaired Prc. Grenade Launcher 10016 | -7/Factory | Discovered new exit (range 9) 10039 | -7/Factory | Identified exit to Lower Caves 10876 | -7/Factory | Fabricated Flak Gun? 10919 | -7/Factory | P-60 Hacker assimilated allied Angel 4a 11186 | -7/Factory | Entered another Factory area 11186 | -6/Factory | Evolved 2 slots: Utility x2 11430 | -6/Factory | Identified exit to Lower Caves 11430 | -6/Factory | Identified exit to Extension 11546 | -6/Factory | Identified exit to Factory 12164 | -6/Factory | Cargo convoy interrupted 12680 | -6/Factory | Entered Extension 12976 | -6/Extension | Rescued a captive Derelict 13030 | -6/Extension | Disrupted transfer network 13195 | -6/Extension | Energy Cycler disabled 13216 | -6/Extension | Destroyed 7 combat bots 13599 | -6/Extension | Spotted B-75 Beast 13625 | -6/Extension | Spotted B-75 Beast 13642 | -6/Extension | Allies destroyed B-75 Beast 13674 | -6/Extension | Destroyed B-75 Beast 13680 | -6/Extension | Lost 8 parts (1p4n3u) 13694 | -6/Extension | Discovered exit to Factory (range 14) 13730 | -6/Extension | Extracted ID and sensor layout for unrecognized location from A7's data core 14242 | -6/Extension | Found Unknown Protection 14242 | -6/Extension | Identified Hvy. Insulated Plating 14320 | -6/Extension | Lost 3 parts (2n1u) 14883 | -6/Extension | Discovered exit to Factory (range 16) 14888 | -6/Extension | Discovered new exit (range 15) 15293 | -6/Extension | Entered Cetus 15326 | -6/Cetus | Spotted Cetus Guard 15326 | -6/Cetus | Spotted Cetus Guard 15329 | -6/Cetus | Spotted Cetus Guard 15329 | -6/Cetus | Destroyed Cetus Guard 15337 | -6/Cetus | Destroyed Cetus Guard 15341 | -6/Cetus | Spotted Cetus Guard 15349 | -6/Cetus | Destroyed Cetus Guard 15354 | -6/Cetus | Build established: Scavenger-Mutant 15364 | -6/Cetus | Destroyed Cetus Guard 15617 | -6/Cetus | Discovered new exit (range 16) 15647 | -6/Cetus | Spotted Cetus Guard 15647 | -6/Cetus | Spotted Cetus Guard 15651 | -6/Cetus | Spotted Cetus Guard 15656 | -6/Cetus | Destroyed Cetus Guard 15659 | -6/Cetus | Spotted Cetus Guard 15668 | -6/Cetus | Destroyed Cetus Guard 15688 | -6/Cetus | Destroyed Cetus Guard 15688 | -6/Cetus | Destroyed Cetus Guard 15708 | -6/Cetus | Discovered exit to Factory (range 15) 15716 | -6/Cetus | Met Revision 17 15830 | -6/Cetus | Cetus Manufacturing Module disabled 16120 | -6/Cetus | Entered Archives 16419 | -6/Archives | Discovered exit to Factory (range 16) 16476 | -6/Archives | Discovered new exit (range 14) 16525 | -6/Archives | Discovered new exit (range 15) 18009 | -6/Archives | Entered Hub_04(d) 18157 | -6/Hub_04(d) | Core integrity fell below 50% 18696 | -6/Hub_04(d) | Network Hub disabled 18696 | -6/Hub_04(d) | Network Hub disabled 18709 | -6/Hub_04(d) | First assault squad dispatched 18728 | -6/Hub_04(d) | Entered Factory 18728 | -5/Factory | Evolved 2 slots: Power x1, Utility x1 18804 | -5/Factory | Build established: Hacker-Mutant 19032 | -5/Factory | Discovered new exit (range 3) 19039 | -5/Factory | Identified exit to Upper Caves 19326 | -5/Factory | Identified exit to Factory 19439 | -5/Factory | Build established: Wizard-Mutant 20315 | -5/Factory | Central database locked down 20334 | -5/Factory | Repaired Centrium Heavy Treads? 20407 | -5/Factory | Repaired Centrium Heavy Treads? 20516 | -5/Factory | Repaired Centrium Medium Armor Plating 20589 | -5/Factory | Repaired Centrium Medium Armor Plating 20644 | -5/Factory | Repaired Centrium Heavy Treads 20895 | -5/Factory | Fabricated P-70 Sage (x2) 20933 | -5/Factory | Fabricated Exp. Utility Shielding (x1) 20977 | -5/Factory | Fabricated P-70 Sage (x2) 21092 | -5/Factory | Entered Upper Caves 21092 | -5/Upper Caves | Accompanied by 4 allies 21093 | -5/Upper Caves | Sage 6d assimilated hostile G-50 Soldier 21094 | -5/Upper Caves | Attracted the attention of an 0b10 checkpoint 21095 | -5/Upper Caves | Sage 6a assimilated hostile S-27 Virus 21796 | -5/Upper Caves | Attracted the attention of an 0b10 outpost 21852 | -5/Upper Caves | Discovered new exit (range 10) 21872 | -5/Upper Caves | Identified exit to Upper Caves 21878 | -5/Upper Caves | Learned location of Warlord (-4) 22401 | -5/Upper Caves | Learned 4 Factory zone layouts 22690 | -5/Upper Caves | Entered another Upper Caves area 22690 | -5/Upper Caves | Accompanied by 7 allies 22743 | -5/Upper Caves | Discovered exit to Factory (range 12) 23065 | -5/Upper Caves | Spotted 6G-FC7(f) 23067 | -5/Upper Caves | Encountered a Master Thief 23067 | -5/Upper Caves | Spotted X1-6JD(f) 23068 | -5/Upper Caves | Encountered a Master Thief 23069 | -5/Upper Caves | Spotted C1-O2T(f) 23069 | -5/Upper Caves | Spotted BL-KET(f) 23070 | -5/Upper Caves | Encountered a Master Thief 23070 | -5/Upper Caves | Encountered a Master Thief 23070 | -5/Upper Caves | Allies destroyed 6G-FC7(f) 23076 | -5/Upper Caves | Allies destroyed X1-6JD(f) 23079 | -5/Upper Caves | Allies destroyed C1-O2T(f) 23085 | -5/Upper Caves | Allies destroyed BL-KET(f) 23272 | -5/Upper Caves | Discovered new exit (range 3) 23285 | -5/Upper Caves | Identified exit to Zhirov 23286 | -5/Upper Caves | Entered Zhirov 23286 | -5/Zhirov | Accompanied by 5 allies 23287 | -5/Zhirov | Discovered new exit (range 3) 23316 | -5/Zhirov | Met Zhirov 23353 | -5/Zhirov | Learned location of Quarantine (-2) 23353 | -5/Zhirov | Learned location of Testing (-3) 23353 | -5/Zhirov | Learned location of Command (-1) 23380 | -5/Zhirov | Zhirov requested help retrieving the SGEMP Prototype 23405 | -5/Zhirov | Found Alien Artifact 23405 | -5/Zhirov | Identified Integrated Reactor 23405 | -5/Zhirov | Installed Integrated Reactor, increased core energy generation (+10) 23569 | -5/Zhirov | Found Alien Artifact 23668 | -5/Zhirov | Entered Proximity Caves 23668 | -4/Proximity Caves | Accompanied by 5 allies 23856 | -4/Proximity Caves | Spotted B-86 Titan 23869 | -4/Proximity Caves | Allies destroyed B-86 Titan 24082 | -4/Proximity Caves | Sage 6b assimilated hostile G-73 Enforcer 24241 | -4/Proximity Caves | Acquired the password to a Derelict Tinkerer's latest research 24250 | -4/Proximity Caves | Found Prototype Special Weapon 24250 | -4/Proximity Caves | Identified Molecular Deconstructor 24382 | -4/Proximity Caves | Sage 6d assimilated hostile X-72 Disruptor 24403 | -4/Proximity Caves | Attracted the attention of an 0b10 outpost 24442 | -4/Proximity Caves | Caught by Unaware searching for contraband prototypes 24730 | -4/Proximity Caves | Discovered exit to Factory (range 7) 24915 | -4/Proximity Caves | Entered Factory 24915 | -4/Factory | Accompanied by 1 ally 24915 | -4/Factory | Evolved 2 slots: Utility x2 24959 | -4/Factory | Identified exit to Upper Caves 24959 | -4/Factory | Identified exit to Research 25152 | -4/Factory | Sucked down chute 25152 | -4/Factory | Entered Waste 25160 | -4/Waste | 1 allies followed down the chute 25170 | -4/Waste | 1 allies followed down the chute 25196 | -4/Waste | Spotted C-40 Crusher 25272 | -4/Waste | Destroyed C-40 Crusher 25287 | -4/Waste | Destroyed C-40 Crusher 25302 | -4/Waste | Allies destroyed C-40 Crusher 25312 | -4/Waste | Destroyed C-40 Crusher 25318 | -4/Waste | Destroyed C-40 Crusher 25463 | -4/Waste | Spotted C-40 Crusher 25475 | -4/Waste | Destroyed C-40 Crusher 25519 | -4/Waste | Warlord forces began an assault 25551 | -4/Waste | Discovered new exit (range 12) 25928 | -4/Waste | Identified exit to Factory 25937 | -4/Waste | Entered Factory 25937 | -4/Factory | Accompanied by 17 allies 25958 | -4/Factory | Garrison activated, responded to threat 25998 | -4/Factory | Spotted B-86 Titan 26009 | -4/Factory | Allies destroyed B-86 Titan 26587 | -4/Factory | Fabricated Cld. Proton Cannon (x1) 26612 | -4/Factory | Fabricated Quantum Capacitor (x2) 26651 | -4/Factory | Fabricated P-70 Sage (x2) 26651 | -4/Factory | Imp. System Shield fried by hacking feedback 26799 | -4/Factory | Sage 7b assimilated hostile H-71 Marshal 27241 | -4/Factory | Local fabrication network quarantined 27273 | -4/Factory | Repaired Centrium Heavy Treads 27309 | -4/Factory | Repaired Centrium Heavy Treads 27349 | -4/Factory | Repaired Rnf. Quantum Reactor 27437 | -4/Factory | First assault squad dispatched 27534 | -4/Factory | Found Prototype Processor 27534 | -4/Factory | Identified Exp. Melee Analysis Suite 28037 | -4/Factory | Identified Transdimensional Reconstructor 28215 | -4/Factory | Repaired Cld. Proton Cannon? 28265 | -4/Factory | Repaired Rnf. Fission Core 28299 | -4/Factory | System corruption reached 10% 28322 | -4/Factory | Repaired Centrium Medium Armor Plating 28442 | -4/Factory | Entered Upper Caves 29205 | -4/Upper Caves | Discovered new exit (range 15) 29466 | -4/Upper Caves | Identified exit to Upper Caves 29467 | -4/Upper Caves | Entered another Upper Caves area 29467 | -4/Upper Caves | Accompanied by 1 ally 29469 | -4/Upper Caves | Attracted the attention of an 0b10 outpost 29536 | -4/Upper Caves | Destroyed 18 combat bots 29545 | -4/Upper Caves | Lost 3 parts (1n2u) 30198 | -4/Upper Caves | Attracted the attention of an 0b10 checkpoint 30345 | -4/Upper Caves | Crushed by falling debris 30629 | -4/Upper Caves | Discovered new exit (range 14) 30672 | -4/Upper Caves | Identified exit to Warlord 30718 | -4/Upper Caves | Entered Warlord 30718 | -4/Warlord | Accompanied by 1 ally 30772 | -4/Warlord | System corruption cleaned by Quarantine Array 31045 | -4/Warlord | Visited the Vortex Lab 31053 | -4/Warlord | Found Prototype Energy Gun 31053 | -4/Warlord | Identified Vortex Shotgun 31056 | -4/Warlord | Warlord's base attacked by MAIN.C 31062 | -4/Warlord | Found Prototype Energy Cannon 31062 | -4/Warlord | Identified Vortex Cannon 31067 | -4/Warlord | Found Vortex Cannon 31076 | -4/Warlord | Found Vortex Shotgun 31124 | -4/Warlord | Met Warlord 31172 | -4/Warlord | Found Prototype Reactor 31172 | -4/Warlord | Identified Vortex Chain Reactor 31181 | -4/Warlord | Found Prototype Hackware 31185 | -4/Warlord | Found Prototype Processor 31185 | -4/Warlord | Identified Exp. Core Analyzer 31364 | -4/Warlord | Found Prototype Ballistic Cannon 31406 | -4/Warlord | Warlord forces counterattacked 31495 | -4/Warlord | Spotted Striker 31520 | -4/Warlord | Destroyed Striker 31552 | -4/Warlord | Found Corrupted Prototype Ballistic Cannon 31600 | -4/Warlord | Spotted Executioner 31627 | -4/Warlord | Build established: Hacker-Mutant 31637 | -4/Warlord | Destroyed Executioner 31658 | -4/Warlord | Destroyed 8 combat bots 31669 | -4/Warlord | Discovered new exit (range 8) 31680 | -4/Warlord | Entered Proximity Caves 31847 | -3/Proximity Caves | Destroyed 9 combat bots 31848 | -3/Proximity Caves | Lost 3 parts (1n2u) 32105 | -3/Proximity Caves | Discovered exit to Research (range 6) 32123 | -3/Proximity Caves | Entered Research 32123 | -3/Research | Evolved 2 slots: Propulsion x1, Utility x1 32132 | -3/Research | Identified System Mapper 32133 | -3/Research | Identified exit to Armory 32133 | -3/Research | Identified exit to Testing 32240 | -3/Research | Spotted B-86 Titan 32425 | -3/Research | System corruption reached 10% 32644 | -3/Research | Lost 4 parts (4u) 32689 | -3/Research | System corruption reached 30% 32712 | -3/Research | Found Corrupted Prototype Device 32712 | -3/Research | Identified Active Sensor Suite 32805 | -3/Research | Lost 6 parts (1p5n) 33029 | -3/Research | Lost 4 parts (1p1n2u) 33115 | -3/Research | Found Prototype Device 33115 | -3/Research | Identified Exp. Thermal Defense Suite 33208 | -3/Research | Build established: Scavenger-Mutant 33426 | -3/Research | Lost 3 parts (1p1n1w) 33441 | -3/Research | System corrupted Last Messages --------------- area. 33395_ Flexi-carbon Leg destroyed. 33395_ Knocked back. 33395_ Vortex Shotgun implodes. 33395_ H-71 Marshal destroyed. 33395_ K-01 Serf collects debris. 33396_ Acquired 3 matter. 33399_ System corrupted: Component data lost. 33407_ Acquired Unknown Launcher. 33407_ Identified Micro-nuke Launcher. 33408_ Acquired 40 matter. 33414_ System corrupted: Matter fused (-10). 33429_ System corrupted: Matter fused (-9). 33436_ Flexi-carbon Leg destroyed. 33437_ Myomer Leg destroyed. 33438_ Flexi-carbon Leg destroyed. 33439_ X-87 Electro suffers critical hit (Sunder). 33439_ X-87 Electro Adv. Cooling System ripped off. 33439_ X-87 Electro destroyed. 33441_ Cogmind system terminally corrupted. Map ----- +----------------------------------------------------+ | ?????????# # + """ # | | ?????????########## # # | | ????????########### # # ! | | ????????# ## ########## | | ????????# # #???????# | | ????????# # ######### | | ????????# """ + ## | | ????????# """ # ## | | ????????# """ # ##### ## | | ????????# # #???# ## | | ????????# ! ### ####???# ####+## | | ????????# #?# #??????# | | ????????##########?# #??????# ^ | | ???????????????????# #??????###### ## | | ???????????????????# #??????### ## #? | | ??????????????######+######## "" ## | | ??????????????# # #""""! !!# | | ??????????????# # # | | ??????????????# # % # | | ??????????????# # #"""" # | | ??????#+#+##### ## ## """"## | | ??????+ # ## ## # ####? | | ??????# + """ ## #######???? | | ???????# ### x# """ ## #?????????? | | ???????????# # """ ## ##????????? | | ???????????# @#######+## #????????? | | ???????????# ! #????????? | | ???????????# % #????????? | | ???????????# ########## #????????? | | ???????????#t #????????######????????? | | ???????????# #??????????????????????? | | ???????????# #??????????????????????? | | ???????????# #??????????????????????? | | ???????????+ #??????????????????????? | | ???????????# #??????????????????????? | | ???????????# ???????????????????????? | | ??????????? ???????????????????????? | | ??????????? ???????????????????????? | | ??????????? ???????????????????????? | | ??????????? ???????????????????????? | | ??????????? ???????????????????????? | | ??????????? ???????????????????????? | | ?????????????????????????????????????? | | ?????????????????????????????????????? | | ?????????????????????????????????????? | | ?????????????????????????????????????? | | ?????????????????????????????????????? | | ?????????????????????????????????????? | | ?????????????????????????????????????? | | ?????????????????????????????????????? | +----------------------------------------------------+ Best States ------------- Heat Dissipation 115 Coolant Potential 65 Energy Generation 67 Energy Capacity 700 Matter Stores 300 Matter Capacity 550 Sight Range 22 Robot Scan Range 20 Terrain Scan Density 210 Jamming Range 16 Cloak Strength 4 Power Amplification 30 Armor Coverage 1350 Resistance: TH 30 Resistance: EM 30 Utility Shielding 90 Phase Shifting 5 Evasion (%) 55 Target Analysis 8 Core Analysis 15 Armor Integrity Analysis 30 Recoil Reduction 4 Energy Filtering 30 Particle Charging 30 Offensive Hacking 60 Defensive Hacking 24 Item Schematics ----------------- Exp. Sensor Array | -9/Materials | Scanalyzed Hacking Suite | -9/Materials | Scanalyzed Imp. Utility Shielding | -8/Storage | Hacked System Shield | -7/Factory | Scanalyzed Imp. Medium Armor Plating | -7/Factory | Scanalyzed Flak Gun | -7/Factory | Scanalyzed Antimatter Cannon | -6/Factory | Scanalyzed Adv. Treads | -6/Factory | Scanalyzed Hvy. Siege Treads | -6/Extension | Hacked Centrium Medium Armor Plating | -5/Factory | Scanalyzed Centrium Heavy Treads | -5/Factory | Scanalyzed Imp. Hacking Suite | -5/Factory | Scanalyzed Imp. System Shield | -5/Factory | Scanalyzed Exp. Utility Shielding | -5/Factory | Hacked Assault Drone Bay | -5/Zhirov | Free Exp. Optical Array | -5/Zhirov | Free Exp. Heat Sink | -5/Zhirov | Free Imp. Arc Thrower | -5/Zhirov | Free Quantum Capacitor | -4/Factory | Hacked Adv. Powered Armor | -4/Factory | Hacked Cld. Proton Cannon | -4/Factory | Hacked Tri-rail Accelerator | -4/Factory | Scanalyzed Particle Accelerator | -4/Factory | Scanalyzed Plasma Rifle | -4/Factory | Scanalyzed Adv. Weapon Cycler | -4/Factory | Hacked Robot Schematics ------------------ O-16 Technician | -10/Materials | Hacked P-70 Sage | -5/Factory | Hacked Fabricated ------------ Flak Gun | x2 | -7/Factory P-70 Sage | x2 | -5/Factory Exp. Utility Shielding | x1 | -5/Factory P-70 Sage | x2 | -5/Factory Cld. Proton Cannon | x1 | -4/Factory Quantum Capacitor | x2 | -4/Factory P-70 Sage | x2 | -4/Factory Alien Tech Used ----------------- Integrated Reactor Achievements -------------- Left-hand Path Challenges ------------ None Game ------ Seed AbsorptionSensorMediator Manual? 0 Play Time 07:58:55 Cumulative 344.4 hours Start 2021.09.08 @ 01:30:52 End 2021.09.08 @ 22:24:21 Sessions 3 Manual Loads 0 Difficulty Rogue Special Mode None Game No. 181 Rogue 181 Adventurer 0 Explorer 0 Win Type - Total 10 Types 6/0/2/2/0/0/0/0/0 Lore% 83 Gallery% 85 Achievement% 67 Wizard Run 0 Options --------- ASCII 0 Keyboard 0 Movement Numpad Keybinds 0 Fullscreen 1 Font 18/SmallcapsGlow Map View 76x50 Tactical HUD 1 Map Filters NONE Filters NONE Steam 1 RUN: e93a9be2-38d8-421d-b55e-9e14cccd4f66